[Event "Czech Open GM 2020"]
[Site "Pardubice"]
[Date "2020.09.25"]
[Round "5.8"]
[White "Petr, Martin"]
[Black "Storme, Isak"]
[Result "1-0"]
[ECO "C45"]
[WhiteElo "2484"]
[BlackElo "2353"]
[Annotator "ChessBase"]
[PlyCount "103"]
[EventDate "2020.09.21"]
[EventCountry "CZE"]
[SourceTitle "playchess.com"]
[Source "ChessBase"]
[SourceQuality "1"]
[TimeControl "40/5400+30:1800+30"]

1. e4 {[%emt 0:02:53]} e5 {[%emt 0:00:00]} 2. Nf3 {[%emt 0:00:12]} Nc6 {[%emt 0:00:00]} 3. d4 {[%emt 0:00:07]} exd4 {[%emt 0:00:00]} 4. Nxd4 {[%emt 0:00:04]} Nf6 {[%emt 0:00:05]} 5. Nxc6 {[%emt 0:00:03]} bxc6 {[%emt 0:00:06]} 6. e5 {[%emt 0:00:03]} Qe7 {[%emt 0:00:11]} 7. Qe2 {[%emt 0:00:05]} Nd5 {[%emt 0:00:14]} 8. h4 {[%emt 0:00:19]} Qe6 {[%emt 0:02:54]} 9. g3 {[%emt 0:03:08]} d6 {[%emt 0:01:34]} 10. c4 {[%emt 0:04:24]} Nb6 {[%emt 0:02:25]} 11. Bf4 {[%emt 0:09:37]} dxe5 {[%emt 0:08:17]} 12. Qxe5 {[%emt 0:00:38]} Bb4+ {[%emt 0:02:01]} 13. Nd2 {[%emt 0:03:23]} O-O {[%emt 0:03:18]} 14. Qxe6 {[%emt 0:01:43]} Bxe6 {[%emt 0:00:14]} 15. O-O-O {[%emt 0:00:06]} Bxd2+ {[%emt 0:02:44]} 16. Rxd2 {[%emt 0:00:12]} Nxc4 {[%emt 0:00:33]} 17. Rc2 {[%emt 0:01:42]} Bd5 {[%emt 0:04:35]} 18. Rg1 {[%emt 0:00:16]} Nd6 {[%emt 0:14:22]} 19. Bg2 {[%emt 0:00:09]} Bxg2 {[%emt 0:02:47]} 20. Rxg2 {[%emt 0:00:05]} Rfe8 {[%emt 0:03:22]} 21. Rg1 {[%emt 0:09:16]} Nf5 {[%emt 0:04:45]} 22. Rd1 {[%emt 0:00:11]} Re6 {[%emt 0:01:54]} 23. Bxc7 {[%emt 0:03:40]} h5 {[%emt 0:01:58]} 24. Rc5 {[%emt 0:03:19]} g6 {[%emt 0:05:44]} 25. Ra5 {[%emt 0:01:09]} Re2 {[%emt 0:08:19]} 26. Rd2 {[%emt 0:01:51]} Re1+ {[%emt 0:01:11]} 27. Kc2 {[%emt 0:00:06]} Rc8 {[%emt 0:03:41]} 28. Be5 {[%emt 0:12:16]} c5 {[%emt 0:04:06]} 29. Bc3 {[%emt 0:05:16]} Nd4+ {[%emt 0:05:49]} 30. Bxd4 {[%emt 0:00:00]} cxd4+ {[%emt 0:00:06]} 31. Kd3 {[%emt 0:00:00]} Rc7 {[%emt 0:01:00]} 32. Ra4 {[%emt 0:00:00]} Kg7 {[%emt 0:01:21]} 33. Rxd4 {[%emt 0:00:00]} Rb7 {[%emt 0:02:35]} 34. Rc4 {[%emt 0:00:00]} Rbe7 {[%emt 0:01:42]} 35. b3 {[%emt 0:03:31]} f6 {[%emt 0:02:24]} 36. Kc3 {[%emt 0:00:00]} Rf1 {[%emt 0:01:45]} 37. b4 {[%emt 0:03:11]} g5 {[%emt 0:02:05]} 38. a4 {[%emt 0:00:04]} Kg6 {[%emt 0:01:09]} 39. b5 {[%emt 0:00:24]} Rb1 {[%emt 0:05:00]} 40. hxg5 {[%emt 0:11:36]} fxg5 {[%emt 0:00:16]} 41. Rd6+ {[%emt 0:30:55]} Kf5 {[%emt 0:31:28]} 42. Rd5+ {[%emt 0:13:22]} Re5 {[%emt 0:00:22]} 43. g4+ {[%emt 0:04:48]} hxg4 {[%emt 0:00:42]} 44. Rxe5+ {[%emt 0:00:04]} Kxe5 {[%emt 0:00:07]} 45. Rxg4 {[%emt 0:00:03]} Kf5 {[%emt 0:01:44]} 46. Rd4 {[%emt 0:00:04]} Rc1+ {[%emt 0:00:00]} 47. Kb4 {[%emt 0:00:00]} Rc7 {[%emt 0:00:00]} 48. a5 {[%emt 0:00:00]} g4 {[%emt 0:00:00]} 49. b6 {[%emt 0:00:00]} axb6 {[%emt 0:00:00]} 50. axb6 {[%emt 0:00:00]} Rf7 {[%emt 0:00:00]} 51. Kc5 {[%emt 0:00:00]} Kg5 {[%emt 0:00:00]} 52. Rd2 {[%emt 0:00:00]} 1-0

[Event "Czech Open GM 2020"]
[Site "Pardubice"]
[Date "2020.09.25"]
[Round "5.9"]
[White "Zwardon, Vojtech"]
[Black "Leeb, Simon"]
[Result "1-0"]
[ECO "D90"]
[WhiteElo "2455"]
[BlackElo "2234"]
[Annotator "ChessBase"]
[PlyCount "63"]
[EventDate "2020.09.21"]
[EventCountry "CZE"]
[SourceTitle "playchess.com"]
[Source "ChessBase"]
[SourceQuality "1"]
[TimeControl "40/5400+30:1800+30"]

1. c4 {[%emt 0:10:40]} c6 {[%emt 0:00:06]} 2. Nc3 {[%emt 0:00:03]} Nf6 {[%emt 0:00:22]} 3. d4 {[%emt 0:00:18]} d5 {[%emt 0:00:37]} 4. cxd5 {[%emt 0:00:04]} Nxd5 {[%emt 0:00:10]} 5. Nf3 {[%emt 0:00:46]} g6 {[%emt 0:02:06]} 6. e4 {[%emt 0:02:31]} Nb6 {[%emt 0:00:39]} 7. Be2 {[%emt 0:03:48]} Bg4 {[%emt 0:02:03]} 8. a4 {[%emt 0:03:30]} Bg7 {[%emt 0:11:49]} 9. a5 {[%emt 0:01:38]} Bxf3 {[%emt 0:00:13]} 10. gxf3 {[%emt 0:00:05]} Nc8 {[%emt 0:07:23]} 11. Be3 {[%emt 0:00:54]} O-O {[%emt 0:16:35]} 12. f4 {[%emt 0:00:39]} Nd6 {[%emt 0:02:28]} 13. Qc2 {[%emt 0:02:23]} e6 {[%emt 0:05:00]} 14. h4 {[%emt 0:01:32]} h5 {[%emt 0:02:10]} 15. Qb3 {[%emt 0:05:00]} a6 {[%emt 0:08:10]} 16. Qb4 {[%emt 0:00:59]} Nb5 {[%emt 0:07:29]} 17. Rd1 {[%emt 0:01:10]} Qc8 {[%emt 0:06:46]} 18. Na4 {[%emt 0:05:01]} Nd7 {[%emt 0:01:08]} 19. f5 {[%emt 0:02:59]} exf5 {[%emt 0:02:09]} 20. exf5 {[%emt 0:00:19]} Nf6 {[%emt 0:00:50]} 21. fxg6 {[%emt 0:00:06]} Nd5 {[%emt 0:01:47]} 22. Qb3 {[%emt 0:00:53]} fxg6 {[%emt 0:02:19]} 23. Nb6 {[%emt 0:00:37]} Qf5 {[%emt 0:00:05]} 24. Nxd5 {[%emt 0:02:39]} cxd5 {[%emt 0:01:17]} 25. Rg1 {[%emt 0:00:33]} Nxd4 {[%emt 0:02:40]} 26. Rxd4 {[%emt 0:00:20]} Bxd4 {[%emt 0:00:21]} 27. Bxd4 {[%emt 0:00:07]} Rae8 {[%emt 0:01:53]} 28. Be3 {[%emt 0:05:02]} Kh7 {[%emt 0:02:07]} 29. Rg5 {[%emt 0:03:23]} Qb1+ {[%emt 0:07:07]} 30. Kd2 {[%emt 0:00:20]} d4 {[%emt 0:01:00]} 31. Qxb7+ {[%emt 0:00:08]} Kh6 {[%emt 0:00:33]} 32. Rxh5# {[%emt 0:00:04]} 1-0

[Event "Czech Open GM 2020"]
[Site "Pardubice"]
[Date "2020.09.25"]
[Round "5.10"]
[White "Jurcik, Marian"]
[Black "Ochedzan, Tymon"]
[Result "1-0"]
[ECO "B12"]
[WhiteElo "2426"]
[BlackElo "2214"]
[Annotator "NA"]
[PlyCount "55"]
[EventDate "2020.09.21"]
[EventCountry "CZE"]
[SourceTitle "playchess.com"]
[Source "ChessBase"]
[SourceQuality "1"]
[TimeControl "40/5400+30:1800+30"]

1. e4 {[%emt 0:00:00]} c6 {[%emt 0:00:00]} 2. d4 {[%emt 0:09:27]} d5 {[%emt 0:00:00]} 3. e5 {[%emt 0:01:01]} c5 {[%emt 0:00:14]} 4. dxc5 {[%emt 0:00:34]} e6 {[%emt 0:00:29]} 5. Nf3 {[%emt 0:00:34]} Bxc5 {[%emt 0:01:37]} 6. Bd3 {[%emt 0:00:30]} Ne7 {[%emt 0:04:25]} 7. O-O {[%emt 0:01:16]} Ng6 {[%emt 0:02:51]} 8. Nbd2 {[%emt 0:01:38]} O-O {[%emt 0:06:26]} 9. Nb3 {[%emt 0:00:40]} Be7 {[%emt 0:02:21]} 10. Re1 {[%emt 0:03:57]} Nc6 {[%emt 0:02:18]} 11. c3 {[%emt 0:10:36]} b6 {[%emt 0:11:23]} 12. Nbd4 {[%emt 0:00:52]} Bb7 {[%emt 0:11:02]} 13. Nxc6 {[%emt 0:02:20]} Bxc6 {[%emt 0:00:07]} 14. Nd4 {[%emt 0:00:05]} Qd7 {[%emt 0:05:02]} 15. Qh5 {[%emt 0:01:32]} Bc5 {[%emt 0:18:24]} 16. Re3 {[%emt 0:03:38]} f5 {[%emt 0:11:00]} 17. exf6 {[%emt 0:04:35]} Rxf6 {[%emt 0:00:52]} 18. Rh3 {[%emt 0:00:26]} Nf8 {[%emt 0:08:04]} 19. Bxh7+ {[%emt 0:01:45]} Nxh7 {[%emt 0:00:06]} 20. Qxh7+ {[%emt 0:00:05]} Kf8 {[%emt 0:00:35]} 21. Bg5 {[%emt 0:09:25]} Bxd4 {[%emt 0:00:39]} 22. cxd4 {[%emt 0:00:15]} Rf5 {[%emt 0:00:07]} 23. Qg6 {[%emt 0:04:37]} Kg8 {[%emt 0:00:48]} 24. g4 {[%emt 0:01:16]} Rff8 {[%emt 0:01:10]} 25. Re1 {[%emt 0:01:12]} e5 {[%emt 0:04:16]} 26. Qh7+ {[%emt 0:00:46]} Kf7 {[%emt 0:00:04]} 27. Rf3+ {[%emt 0:00:40]} Ke8 {[%emt 0:00:24]} 28. Rxe5+ {[%emt 0:00:15]} 1-0

[Event "Czech Open GM 2020"]
[Site "Pardubice"]
[Date "2020.09.25"]
[Round "5.11"]
[White "Rocco, Federico"]
[Black "Pantzar, Milton"]
[Result "1-0"]
[ECO "B12"]
[WhiteElo "2123"]
[BlackElo "2424"]
[Annotator "NA"]
[PlyCount "67"]
[EventDate "2020.09.21"]
[EventCountry "CZE"]
[SourceTitle "playchess.com"]
[Source "ChessBase"]
[SourceQuality "1"]
[TimeControl "40/5400+30:1800+30"]

1. e4 {[%emt 0:00:00]} c6 {[%emt 0:00:00]} 2. d4 {[%emt 0:00:00]} d5 {[%emt 0:00:00]} 3. e5 {[%emt 0:00:00]} c5 {[%emt 0:00:00]} 4. dxc5 {[%emt 0:00:08]} e6 {[%emt 0:00:09]} 5. Nf3 {[%emt 0:01:00]} Bxc5 {[%emt 0:00:25]} 6. Bd3 {[%emt 0:00:27]} Ne7 {[%emt 0:02:04]} 7. a3 {[%emt 0:01:16]} a6 {[%emt 0:01:01]} 8. b4 {[%emt 0:00:56]} Ba7 {[%emt 0:00:22]} 9. O-O {[%emt 0:00:53]} Nbc6 {[%emt 0:00:54]} 10. Nbd2 {[%emt 0:10:30]} Ng6 {[%emt 0:01:30]} 11. Bxg6 {[%emt 0:00:30]} fxg6 {[%emt 0:08:38]} 12. c4 {[%emt 0:01:30]} O-O {[%emt 0:09:19]} 13. Qb3 {[%emt 0:02:02]} g5 {[%emt 0:16:03]} 14. h3 {[%emt 0:19:11]} h5 {[%emt 0:12:29]} 15. Bb2 {[%emt 0:16:58]} g4 {[%emt 0:06:42]} 16. Nh2 {[%emt 0:00:05]} Qg5 {[%emt 0:14:12]} 17. Rad1 {[%emt 0:09:23]} Nxe5 {[%emt 0:09:21]} 18. Bxe5 {[%emt 0:12:51]} Qxe5 {[%emt 0:00:20]} 19. hxg4 {[%emt 0:01:22]} hxg4 {[%emt 0:03:57]} 20. Nxg4 {[%emt 0:00:06]} Qf4 {[%emt 0:01:45]} 21. Ne3 {[%emt 0:00:22]} d4 {[%emt 0:01:44]} 22. g3 {[%emt 0:00:13]} Qf7 {[%emt 0:02:15]} 23. Ng2 {[%emt 0:02:07]} e5 {[%emt 0:00:37]} 24. Qd3 {[%emt 0:03:28]} Bf5 {[%emt 0:02:18]} 25. Ne4 {[%emt 0:02:20]} Bxe4 {[%emt 0:03:45]} 26. Qxe4 {[%emt 0:00:06]} Qxc4 {[%emt 0:00:06]} 27. Qxb7 {[%emt 0:03:12]} d3 {[%emt 0:00:52]} 28. Nh4 {[%emt 0:07:24]} e4 {[%emt 0:01:44]} 29. Nf5 {[%emt 0:00:30]} Qf7 {[%emt 0:01:22]} 30. Ne7+ {[%emt 0:00:20]} Kh8 {[%emt 0:00:16]} 31. Qxe4 {[%emt 0:00:11]} g6 {[%emt 0:00:49]} 32. Nxg6+ {[%emt 0:00:06]} Kg7 {[%emt 0:00:15]} 33. Nxf8 {[%emt 0:00:06]} Rxf8 {[%emt 0:00:03]} 34. Rxd3 {[%emt 0:00:15]} 1-0

[Event "Czech Open GM 2020"]
[Site "Pardubice"]
[Date "2020.09.25"]
[Round "5.12"]
[White "Szpar, Milosz"]
[Black "Nemec, Jachym"]
[Result "1-0"]
[ECO "B33"]
[WhiteElo "2397"]
[BlackElo "2150"]
[Annotator "NA"]
[PlyCount "79"]
[EventDate "2020.09.21"]
[EventCountry "CZE"]
[SourceTitle "playchess.com"]
[Source "ChessBase"]
[SourceQuality "1"]
[TimeControl "40/5400+30:1800+30"]

1. e4 {[%emt 0:00:00]} c5 {[%emt 0:00:00]} 2. Nf3 {[%emt 0:00:00]} Nc6 {[%emt 0:00:00]} 3. d4 {[%emt 0:00:20]} cxd4 {[%emt 0:00:00]} 4. Nxd4 {[%emt 0:00:08]} Nf6 {[%emt 0:00:01]} 5. Nc3 {[%emt 0:00:06]} e5 {[%emt 0:00:06]} 6. Ndb5 {[%emt 0:00:13]} d6 {[%emt 0:00:07]} 7. Bg5 {[%emt 0:00:42]} a6 {[%emt 0:00:23]} 8. Na3 {[%emt 0:00:09]} b5 {[%emt 0:00:05]} 9. Bxf6 {[%emt 0:00:24]} gxf6 {[%emt 0:00:07]} 10. Nd5 {[%emt 0:00:05]} Bg7 {[%emt 0:00:06]} 11. Bd3 {[%emt 0:00:36]} Ne7 {[%emt 0:00:06]} 12. Nxe7 {[%emt 0:00:26]} Qxe7 {[%emt 0:00:05]} 13. c4 {[%emt 0:00:50]} O-O {[%emt 0:00:17]} 14. O-O {[%emt 0:00:53]} f5 {[%emt 0:01:20]} 15. Qh5 {[%emt 0:00:39]} Rb8 {[%emt 0:01:16]} 16. exf5 {[%emt 0:01:07]} e4 {[%emt 0:04:30]} 17. Rae1 {[%emt 0:00:48]} Bb7 {[%emt 0:00:16]} 18. b3 {[%emt 0:00:13]} Rfe8 {[%emt 0:08:31]} 19. Nc2 {[%emt 0:05:45]} bxc4 {[%emt 0:02:45]} 20. Bxc4 {[%emt 0:09:27]} Rbd8 {[%emt 0:12:09]} 21. Ne3 {[%emt 0:21:59]} d5 {[%emt 0:01:05]} 22. Bxd5 {[%emt 0:01:11]} Bxd5 {[%emt 0:00:16]} 23. f6 {[%emt 0:00:18]} Qxf6 {[%emt 0:01:54]} 24. Nxd5 {[%emt 0:00:12]} Qb2 {[%emt 0:02:55]} 25. Rd1 {[%emt 0:25:37]} Qxa2 {[%emt 0:13:00]} 26. Ne7+ {[%emt 0:00:52]} Kf8 {[%emt 0:05:50]} 27. Rxd8 {[%emt 0:01:26]} Rxd8 {[%emt 0:00:05]} 28. Nf5 {[%emt 0:01:36]} Qb2 {[%emt 0:06:13]} 29. Qxh7 {[%emt 0:01:33]} Re8 {[%emt 0:04:40]} 30. h4 {[%emt 0:08:00]} Be5 {[%emt 0:06:50]} 31. Qh6+ {[%emt 0:06:13]} Kg8 {[%emt 0:00:07]} 32. Qxa6 {[%emt 0:06:56]} Qxb3 {[%emt 0:00:52]} 33. Re1 {[%emt 0:02:05]} Qc3 {[%emt 0:01:36]} 34. Qe2 {[%emt 0:00:26]} Re6 {[%emt 0:02:55]} 35. g3 {[%emt 0:00:17]} Bd4 {[%emt 0:01:12]} 36. Rd1 {[%emt 0:02:13]} Bf6 {[%emt 0:00:22]} 37. Qg4+ {[%emt 0:00:52]} Kf8 {[%emt 0:01:02]} 38. h5 {[%emt 0:01:44]} Re5 {[%emt 0:03:52]} 39. h6 {[%emt 0:03:46]} Qa5 {[%emt 0:04:35]} 40. Nd6 {[%emt 0:00:00]} 1-0

[Event "Czech Open GM 2020"]
[Site "Pardubice"]
[Date "2020.09.25"]
[Round "5.13"]
[White "Trybus, Daniel"]
[Black "Sorensen, Hampus"]
[Result "0-1"]
[ECO "C47"]
[WhiteElo "1997"]
[BlackElo "2361"]
[Annotator "NA"]
[PlyCount "60"]
[EventDate "2020.09.21"]
[EventCountry "CZE"]
[SourceTitle "playchess.com"]
[Source "ChessBase"]
[SourceQuality "1"]
[TimeControl "40/5400+30:1800+30"]

1. e4 {[%emt 0:00:00]} e5 {[%emt 0:00:00]} 2. Nf3 {[%emt 0:00:00]} Nc6 {[%emt 0:00:00]} 3. Nc3 {[%emt 0:00:00]} Nf6 {[%emt 0:00:00]} 4. d4 {[%emt 0:00:00]} exd4 {[%emt 0:00:01]} 5. Nxd4 {[%emt 0:00:06]} Bc5 {[%emt 0:01:24]} 6. Be3 {[%emt 0:00:16]} Bb6 {[%emt 0:01:47]} 7. Qd2 {[%emt 0:00:12]} Ng4 {[%emt 0:04:42]} 8. Nf5 {[%emt 0:00:48]} Nxe3 {[%emt 0:02:15]} 9. Nxe3 {[%emt 0:00:06]} O-O {[%emt 0:02:00]} 10. O-O-O {[%emt 0:00:06]} d6 {[%emt 0:01:21]} 11. f4 {[%emt 0:00:38]} Re8 {[%emt 0:08:09]} 12. g3 {[%emt 0:00:48]} Ba5 {[%emt 0:07:20]} 13. Bg2 {[%emt 0:06:23]} Rb8 {[%emt 0:00:58]} 14. Nc4 {[%emt 0:07:39]} Bb4 {[%emt 0:06:08]} 15. a3 {[%emt 0:04:59]} Bc5 {[%emt 0:02:23]} 16. h3 {[%emt 0:06:51]} b5 {[%emt 0:02:27]} 17. e5 {[%emt 0:05:48]} Bd7 {[%emt 0:05:03]} 18. Ne4 {[%emt 0:07:43]} Bd4 {[%emt 0:17:39]} 19. c3 {[%emt 0:07:14]} bxc4 {[%emt 0:08:37]} 20. cxd4 {[%emt 0:00:32]} Rb3 {[%emt 0:02:19]} 21. d5 {[%emt 0:07:53]} c3 {[%emt 0:05:11]} 22. Nxc3 {[%emt 0:07:52]} Na5 {[%emt 0:00:10]} 23. exd6 {[%emt 0:02:17]} Rxa3 {[%emt 0:04:05]} 24. Qd3 {[%emt 0:08:00]} Nb3+ {[%emt 0:05:56]} 25. Kb1 {[%emt 0:07:28]} Ra1+ {[%emt 0:00:29]} 26. Kc2 {[%emt 0:00:14]} Nc5 {[%emt 0:00:17]} 27. Qc4 {[%emt 0:04:52]} Bf5+ {[%emt 0:02:21]} 28. Kd2 {[%emt 0:00:56]} Rxd1+ {[%emt 0:00:27]} 29. Rxd1 {[%emt 0:00:38]} cxd6 {[%emt 0:00:25]} 30. b4 {[%emt 0:08:14]} Bd3 {[%emt 0:04:20]} 0-1

[Event "Czech Open GM 2020"]
[Site "Pardubice"]
[Date "2020.09.25"]
[Round "5.14"]
[White "Lizak, Peter"]
[Black "Jedlicka, Ales"]
[Result "1/2-1/2"]
[ECO "B51"]
[WhiteElo "2457"]
[BlackElo "2197"]
[Annotator "ChessBase"]
[PlyCount "88"]
[EventDate "2020.09.21"]
[EventCountry "CZE"]
[SourceTitle "playchess.com"]
[Source "ChessBase"]
[SourceQuality "1"]
[TimeControl "40/5400+30:1800+30"]

1. e4 {[%emt 0:00:00]} c5 {[%emt 0:00:00]} 2. Nf3 {[%emt 0:00:00]} d6 {[%emt 0:00:13]} 3. Bb5+ {[%emt 0:00:00]} Nd7 {[%emt 0:00:24]} 4. Ba4 {[%emt 0:00:00]} e6 {[%emt 0:01:01]} 5. O-O {[%emt 0:08:51]} Ngf6 {[%emt 0:02:12]} 6. d4 {[%emt 0:01:07]} cxd4 {[%emt 0:00:21]} 7. Qxd4 {[%emt 0:06:49]} Be7 {[%emt 0:02:14]} 8. c4 {[%emt 0:02:25]} O-O {[%emt 0:00:36]} 9. Nc3 {[%emt 0:02:13]} e5 {[%emt 0:09:15]} 10. Qe3 {[%emt 0:05:13]} Nb6 {[%emt 0:00:28]} 11. b3 {[%emt 0:08:25]} Nxa4 {[%emt 0:01:42]} 12. Nxa4 {[%emt 0:00:13]} a6 {[%emt 0:04:36]} 13. h3 {[%emt 0:07:59]} Rb8 {[%emt 0:11:17]} 14. c5 {[%emt 0:11:43]} dxc5 {[%emt 0:10:00]} 15. Bb2 {[%emt 0:05:48]} Nd7 {[%emt 0:12:20]} 16. Nxe5 {[%emt 0:04:16]} Qc7 {[%emt 0:02:32]} 17. Nd3 {[%emt 0:14:01]} b5 {[%emt 0:02:34]} 18. Nc3 {[%emt 0:00:07]} Nb6 {[%emt 0:01:11]} 19. Nd5 {[%emt 0:03:23]} Nxd5 {[%emt 0:00:15]} 20. exd5 {[%emt 0:00:03]} Bf5 {[%emt 0:05:40]} 21. Be5 {[%emt 0:06:41]} Bd6 {[%emt 0:00:28]} 22. Bxd6 {[%emt 0:01:16]} Qxd6 {[%emt 0:00:10]} 23. Qxc5 {[%emt 0:02:18]} Rbd8 {[%emt 0:08:26]} 24. Qxd6 {[%emt 0:03:29]} Rxd6 {[%emt 0:00:10]} 25. Nb4 {[%emt 0:00:34]} Re8 {[%emt 0:02:19]} 26. Rfe1 {[%emt 0:02:25]} Kf8 {[%emt 0:00:14]} 27. Rxe8+ {[%emt 0:00:30]} Kxe8 {[%emt 0:00:12]} 28. Re1+ {[%emt 0:00:09]} Kd7 {[%emt 0:01:36]} 29. Nc6 {[%emt 0:01:33]} Kc7 {[%emt 0:04:53]} 30. f4 {[%emt 0:01:33]} f6 {[%emt 0:07:57]} 31. g4 {[%emt 0:01:00]} Bc8 {[%emt 0:01:21]} 32. Re8 {[%emt 0:01:12]} Bb7 {[%emt 0:01:48]} 33. Re7+ {[%emt 0:00:35]} Rd7 {[%emt 0:00:26]} 34. Rxd7+ {[%emt 0:00:33]} Kxd7 {[%emt 0:00:09]} 35. Nd4 {[%emt 0:00:23]} Bxd5 {[%emt 0:01:02]} 36. a3 {[%emt 0:00:36]} g6 {[%emt 0:02:17]} 37. h4 {[%emt 0:00:14]} Kd6 {[%emt 0:00:24]} 38. Kf2 {[%emt 0:00:24]} Kc5 {[%emt 0:02:03]} 39. Ke3 {[%emt 0:00:07]} a5 {[%emt 0:00:43]} 40. g5 {[%emt 0:00:32]} f5 {[%emt 0:02:24]} 41. Kd3 {[%emt 0:31:07]} Be4+ {[%emt 0:31:55]} 42. Ke3 {[%emt 0:00:13]} Bd5 {[%emt 0:00:29]} 43. Kd3 {[%emt 0:00:00]} Be4+ {[%emt 0:00:00]} 44. Ke3 {[%emt 0:00:00]} Bd5 {[%emt 0:00:00]} 1/2-1/2

[Event "Czech Open GM 2020"]
[Site "Pardubice"]
[Date "2020.09.25"]
[Round "5.15"]
[White "Koziak, Vitali"]
[Black "Pogan, Nikolas"]
[Result "1/2-1/2"]
[ECO "A49"]
[WhiteElo "2434"]
[BlackElo "2212"]
[Annotator "NA"]
[PlyCount "77"]
[EventDate "2020.09.21"]
[EventCountry "CZE"]
[SourceTitle "playchess.com"]
[Source "ChessBase"]
[SourceQuality "1"]
[TimeControl "40/5400+30:1800+30"]

1. Nf3 {[%emt 0:00:00]} Nf6 {[%emt 0:05:22]} 2. g3 {[%emt 0:00:00]} g6 {[%emt 0:00:30]} 3. b3 {[%emt 0:00:10]} Bg7 {[%emt 0:00:04]} 4. Bb2 {[%emt 0:00:10]} d6 {[%emt 0:00:53]} 5. d4 {[%emt 0:00:11]} O-O {[%emt 0:00:15]} 6. Bg2 {[%emt 0:00:05]} a5 {[%emt 0:00:22]} 7. O-O {[%emt 0:03:42]} c6 {[%emt 0:04:47]} 8. c4 {[%emt 0:01:06]} Bf5 {[%emt 0:03:40]} 9. Nc3 {[%emt 0:07:19]} Ne4 {[%emt 0:00:21]} 10. Nh4 {[%emt 0:08:16]} Nxc3 {[%emt 0:03:53]} 11. Bxc3 {[%emt 0:01:24]} Be6 {[%emt 0:03:12]} 12. Rc1 {[%emt 0:01:04]} d5 {[%emt 0:06:19]} 13. e4 {[%emt 0:00:50]} dxe4 {[%emt 0:17:34]} 14. Bxe4 {[%emt 0:00:33]} Nd7 {[%emt 0:01:24]} 15. Re1 {[%emt 0:10:13]} Nf6 {[%emt 0:01:03]} 16. Bg2 {[%emt 0:01:00]} a4 {[%emt 0:20:16]} 17. Rxe6 {[%emt 0:19:00]} fxe6 {[%emt 0:00:04]} 18. Qe2 {[%emt 0:03:43]} Qd6 {[%emt 0:01:48]} 19. Bh3 {[%emt 0:07:56]} axb3 {[%emt 0:00:04]} 20. axb3 {[%emt 0:01:06]} Kh8 {[%emt 0:01:35]} 21. Bxe6 {[%emt 0:01:36]} Ne8 {[%emt 0:07:36]} 22. Qg4 {[%emt 0:08:43]} Rf6 {[%emt 0:00:04]} 23. d5 {[%emt 0:10:16]} Rxe6 {[%emt 0:09:22]} 24. Qxe6 {[%emt 0:01:26]} Qxe6 {[%emt 0:00:26]} 25. dxe6 {[%emt 0:00:16]} Bxc3 {[%emt 0:00:40]} 26. Rxc3 {[%emt 0:00:02]} Nc7 {[%emt 0:00:07]} 27. Rd3 {[%emt 0:04:53]} Nxe6 {[%emt 0:00:19]} 28. Rd7 {[%emt 0:00:22]} Nc5 {[%emt 0:00:06]} 29. Rxe7 {[%emt 0:00:07]} Ra1+ {[%emt 0:00:14]} 30. Kg2 {[%emt 0:00:10]} Rb1 {[%emt 0:00:05]} 31. Re8+ {[%emt 0:05:38]} Kg7 {[%emt 0:00:06]} 32. Re5 {[%emt 0:00:03]} b6 {[%emt 0:00:21]} 33. Re7+ {[%emt 0:00:11]} Kg8 {[%emt 0:00:39]} 34. Rc7 {[%emt 0:00:33]} Rxb3 {[%emt 0:04:54]} 35. Rxc6 {[%emt 0:00:05]} Rb2 {[%emt 0:05:24]} 36. Rc8+ {[%emt 0:02:01]} Kg7 {[%emt 0:00:04]} 37. Rc7+ {[%emt 0:00:07]} Kg8 {[%emt 0:00:29]} 38. Rc8+ {[%emt 0:00:37]} Kg7 {[%emt 0:00:05]} 39. Rc7+ {[%emt 0:00:04]} 1/2-1/2

[Event "Czech Open GM 2020"]
[Site "Pardubice"]
[Date "2020.09.25"]
[Round "5.16"]
[White "Arkell, Keith C"]
[Black "Siekanski, Janusz"]
[Result "1/2-1/2"]
[ECO "D34"]
[WhiteElo "2429"]
[BlackElo "2184"]
[Annotator "NA"]
[PlyCount "76"]
[EventDate "2020.09.21"]
[EventCountry "CZE"]
[SourceTitle "playchess.com"]
[Source "ChessBase"]
[SourceQuality "1"]
[TimeControl "40/5400+30:1800+30"]

1. d4 {[%emt 0:15:13]} d5 {[%emt 0:00:00]} 2. Nf3 {[%emt 0:00:23]} e6 {[%emt 0:00:05]} 3. c4 {[%emt 0:00:06]} c5 {[%emt 0:00:09]} 4. cxd5 {[%emt 0:00:07]} exd5 {[%emt 0:00:06]} 5. g3 {[%emt 0:00:46]} Nf6 {[%emt 0:00:17]} 6. Bg2 {[%emt 0:00:17]} Nc6 {[%emt 0:00:29]} 7. O-O {[%emt 0:00:07]} Be7 {[%emt 0:00:09]} 8. Nc3 {[%emt 0:00:34]} O-O {[%emt 0:00:10]} 9. dxc5 {[%emt 0:00:16]} Bxc5 {[%emt 0:00:13]} 10. Bg5 {[%emt 0:00:05]} d4 {[%emt 0:00:20]} 11. Bxf6 {[%emt 0:00:19]} Qxf6 {[%emt 0:00:08]} 12. Nd5 {[%emt 0:00:14]} Qd8 {[%emt 0:00:23]} 13. Nd2 {[%emt 0:00:52]} Re8 {[%emt 0:00:21]} 14. Rc1 {[%emt 0:05:46]} Bf8 {[%emt 0:00:39]} 15. Nb3 {[%emt 0:10:20]} Bg4 {[%emt 0:18:55]} 16. Re1 {[%emt 0:01:36]} Re5 {[%emt 0:13:24]} 17. Nf4 {[%emt 0:02:32]} Bb4 {[%emt 0:02:05]} 18. Nd2 {[%emt 0:04:15]} d3 {[%emt 0:04:28]} 19. Nxd3 {[%emt 0:05:09]} Bxe2 {[%emt 0:31:27]} 20. Rxe2 {[%emt 0:01:44]} Qxd3 {[%emt 0:00:16]} 21. Be4 {[%emt 0:02:39]} Qd8 {[%emt 0:06:22]} 22. a3 {[%emt 0:09:52]} Bxd2 {[%emt 0:03:43]} 23. Rxd2 {[%emt 0:02:41]} Qb6 {[%emt 0:00:51]} 24. Qc2 {[%emt 0:11:52]} g6 {[%emt 0:04:46]} 25. Bxc6 {[%emt 0:00:55]} Rc8 {[%emt 0:00:57]} 26. Rd6 {[%emt 0:04:00]} Rxc6 {[%emt 0:01:40]} 27. Rxc6 {[%emt 0:00:06]} bxc6 {[%emt 0:00:16]} 28. Rd1 {[%emt 0:02:29]} h5 {[%emt 0:04:00]} 29. Rd6 {[%emt 0:06:40]} Re1+ {[%emt 0:01:34]} 30. Kg2 {[%emt 0:00:02]} Qb5 {[%emt 0:00:34]} 31. Rd8+ {[%emt 0:04:50]} Kh7 {[%emt 0:00:19]} 32. Rd3 {[%emt 0:01:16]} h4 {[%emt 0:02:03]} 33. gxh4 {[%emt 0:02:33]} Qf5 {[%emt 0:01:26]} 34. Qd2 {[%emt 0:04:16]} Qe4+ {[%emt 0:02:04]} 35. Rf3 {[%emt 0:00:13]} Qg4+ {[%emt 0:00:30]} 36. Rg3 {[%emt 0:00:06]} Qe4+ {[%emt 0:00:04]} 37. Rf3 {[%emt 0:01:32]} Qg4+ {[%emt 0:00:36]} 38. Rg3 {[%emt 0:00:05]} Qe4+ {[%emt 0:00:20]} 1/2-1/2